[Event "Indian Blitz Championship 2023"]
[Site "Nashik"]
[Date "2024.03.07"]
[Round "4.2"]
[White "Mohammad Nubairshah Shaikh"]
[Black "Mitrabha, Guha"]
[Result "1-0"]
[ECO "A04"]
[WhiteElo "2436"]
[BlackElo "2526"]
[Annotator "TA"]
[PlyCount "118"]
[EventDate "2024.03.07"]
[EventType "blitz"]
[EventCountry "IND"]
[SourceTitle "playchess.com"]
[Source "ChessBase"]
[SourceQuality "1"]
[TimeControl "180+2"]

{[%evp 9,118,45,38,44,51,25,91,95,76,68,76,82,93,-19,-9,-22,-8,-71,-29,-52,-54,-83,-75,-53,0,-102,-66,-160,-167,-323,-321,-293,-139,-525,-518,-529,-520,-590,-603,-562,-261,-299,-304,-305,-291,-294,-281,-286,-289,-275,715,687,523,0,0,-804,-778,-998,103,-975,-656,-700,-572,-1353,-311,-397,0,-839,-835,-1439,-508,-525,-336,-323,197,214,203,206,451,427,393,297,285,233,285,265,327,156,201,1,168,117,136,0,208,0,240,208,291,305,531,554,570,710,753,683,623,358,350,329,302]} 1. Nf3 {[%emt 0:00:01]} b5 {[%emt 0:00:00]} 2. e4 {[%emt 0:00:02]} Bb7 {[%emt 0:00:01]} 3. Bxb5 {[%emt 0:00:01]} Bxe4 {[%emt 0:00:01]} 4. O-O {[%emt 0:00:02]} Nf6 {[%emt 0:00:03]} 5. Re1 {[%emt 0:00:00]} e6 {[%emt 0:00:06]} 6. d4 {[%emt 0:00:01]} c6 {[%emt 0:00:04]} 7. Ba4 {[%emt 0:00:16]} Be7 {[%emt 0:00:28]} (7... Bxf3 $11 8. Qxf3 Qa5) 8. c4 $16 {[%emt 0:00:02] White is better.} O-O {[%emt 0:00:05]} 9. Nc3 {[%emt 0:00:00]} Bxf3 {[%emt 0:00:01]} 10. Qxf3 {[%emt 0:00:03]} d5 {[%emt 0:00:01]} 11. Bf4 {[%emt 0:00:10] White has more active pieces. The black rooks are passive.} ({Better is} 11. c5 $16) 11... dxc4 $11 {[%emt 0:00:24]} 12. Rad1 {[%emt 0:00:13][%cal Oe1e3]} Nd5 {[%emt 0:00:04]} 13. Bc1 {[%emt 0:00:03]} (13. Bxb8 $11 Rxb8 14. Bxc6) 13... Qc7 {[%emt 0:00:25]} 14. Bc2 {[%emt 0:00:11]} Nd7 {[%emt 0:00:02]} 15. Re4 {[%emt 0:00:17]} N7f6 {[%emt 0:00:11]} 16. Rh4 {[%emt 0:00:03]} Rfd8 {[%emt 0:00:06]} (16... g6 $15) 17. a3 {[%emt 0:00:41]} (17. g4 $1 $11 {keeps the balance.} Nb4 18. Bb1) 17... g6 {[%emt 0:00:20]} 18. Bg5 {[%emt 0:00:22]} (18. g4 $15) 18... Ne8 $17 {[%emt 0:00:10] A dynamic duo of knights.} 19. Rxh7 $2 {[%emt 0:00:02]} (19. Ne4 {was necessary.}) 19... Bxg5 $19 {[%emt 0:00:02]} 20. Bxg6 {[%emt 0:00:01][%cal Rh7f7]} Qf4 {[%emt 0:00:26]} (20... Ng7 $19 21. Bc2 f5 22. Nxd5 cxd5) 21. Qh5 {[%emt 0:00:12][%mdl 8192]} (21. Rxf7 $17 {nothing else works.} Qxf3 22. Rxf3) 21... Nef6 {[%emt 0:00:31]} (21... fxg6 22. Qxg6+ Kf8 23. Rh8+ Ke7 24. Rh7+ Kf8 25. Ne4 $11) 22. Bxf7+ {[%emt 0:00:25]} Kf8 {[%emt 0:00:01]} 23. Qg6 {[%emt 0:00:37] [#] Threatening mate with Qg7+.} Nxh7 {[%emt 0:00:01]} 24. Bxe6 {[%emt 0:00:02] Threatens to win with Ne4.} Qf6 {[%emt 0:00:07]} (24... Nxc3 $142 25. bxc3 Qf6 26. Qxh7 Qxe6 27. Qh8+ Kf7 28. Qh7+ Kf6) 25. Qg8+ {[%emt 0:00:01]} Ke7 {[%emt 0:00:01]} 26. Qxh7+ {[%emt 0:00:00]} Kxe6 {[%emt 0:00:02]} 27. Re1+ {[%emt 0:00:01] [#]} Ne3 $1 {[%emt 0:00:02][%cal Od8d4]} 28. Ne4 {[%emt 0:00:02]} Qf5 {[%emt 0:00:07] Strongly threatening ...Bf4.} (28... Qxd4 $2 29. Nxg5+ Kd5 30. fxe3 $18 (30. Qf7+ Kd6 $18)) 29. Nxg5+ {[%emt 0:00:05]} Kf6 $4 {[%emt 0:00:01][%mdl 8192]} (29... Qxg5 $19 30. Rxe3+ Kd6) 30. Ne4+ $18 {[%emt 0:00:03]} Ke6 {[%emt 0:00:01]} 31. Nc5+ $2 {[%emt 0:00:02]} (31. Qh6+ $18 Kf7 32. Qxe3 (32. Rxe3 Rxd4 33. Ng5+ Kg8 $18)) 31... Kd5 $11 {[%emt 0:00:03]} 32. Qe7 {[%emt 0:00:02][%mdl 8192]} (32. Qc7 $11 Rg8 (32... Kxd4 $2 33. fxe3+ Kxc5 34. Qa5+ Kd6 35. Qxf5 $18) 33. fxe3 (33. Rxe3 $2 Qb1+) 33... Rxg2+ 34. Kh1 (34. Kxg2 $2 Rg8+ $19) 34... Rg1+ 35. Rxg1 Qf3+ 36. Rg2 Qf1+ 37. Rg1 Qf3+ 38. Rg2 Qf1+ 39. Rg1 Qf3+) 32... Re8 $19 {[%emt 0:00:03]} (32... Kxd4 33. Qxe3+ Kd5 34. Na6 (34. Rd1+ Qd3 35. Nxd3 cxd3 36. Rxd3+ Kc4 37. Qe4+ Kb5 38. Rb3+ Kc5 39. Rc3+ Kd6 40. Rxc6+ Kd7 41. Qe6#) 34... Kd6 35. Qe7+ Kd5 36. Qc5#) 33. Qc7 {[%emt 0:00:02]} Rac8 $2 {[%emt 0:00:03]} (33... Kxd4 $2 34. fxe3+ Kxc5 35. Qa5+ Kd6 36. Qxf5 $18) ({Black should play} 33... Ng4 $19 {[%cal Re8e1]} 34. Rf1 Re1 (34... Kxd4 35. Qd6+ Qd5 36. Rd1#) 35. Qd7+ Qxd7 36. Nxd7 Rxf1+ 37. Kxf1 Kxd4) 34. Qb7 $2 {[%emt 0:00:01][%mdl 8192]} (34. Qa5 $16 Ng4 (34... Kxd4 $2 35. fxe3+ Ke5 36. Rf1 $18) 35. Nd3+ c5 36. Nb4+ Kxd4 (36... Kd6 37. Qa6+ Kd7 38. Qb5+ Kd6 39. dxc5+ Qxc5 40. Rd1+ Ke7 41. Qd7+ Kf8 42. Qxg4 $16) 37. Rd1+ Ke4 38. f3+ Kf4 39. Nd5+ Kg5 40. fxg4 Qxg4 41. Qd2+ Kg6 42. Nf4+ Kh7 43. Qc2+ Kh8 44. Qc3+ Kh7 45. Rd6) 34... Nc2 {[%emt 0:00:03]} (34... Kxd4 $2 35. fxe3+ Kxc5 36. Qb4+ Kd5 37. Rd1+ Ke6 38. Qxc4+ Ke7 39. Qh4+ Kf8 40. Rf1 $18) 35. Rf1 {[%emt 0:00:03]} Nxd4 {[%emt 0:00:02]} (35... Kxd4 36. Qxa7 Ke5 (36... Qxc5 $2 37. Rd1+ Ke5 38. Qxc5+ $18) 37. Rd1 $15) 36. Na6 {[%emt 0:00:01][%cal Bc5a6,Ba6b4,Bb4c2,Bc2e3][%mdl 32] Prevents Rb8} Ne2+ $2 {[%emt 0:00:02]} (36... Rg8 {[%cal Og8g2]} 37. g3 Kd6 38. Qb4+ c5) 37. Kh1 {[%emt 0:00:00]} Kd6 $2 {[%emt 0:00:02]} (37... Rh8 $19 {[%cal Oh8h2]} 38. Rd1+ Nd4) 38. Qxa7 $2 {[%emt 0:00:01][%mdl 8192]} (38. Rd1+ $11 Ke5 39. Qg7+ Ke4 40. Nc5+ Qxc5 41. Qg4+ Nf4 42. Re1+ Kd5 43. Qf3+ Kd6 (43... Kd4 44. Qxf4+ Kd5 45. Qg5+ Kd6 46. Rd1+ $11) 44. Qxf4+ Kd7 45. Rd1+ Ke7 46. Qh4+ (46. Re1+ Kd7 $11) 46... Kf7 47. Qh7+ Kf8 48. Qh8+ Kf7 (48... Ke7 49. Qg7+ Ke6 50. Qd7+ Kf6 51. Rd6+ Ke5 52. f4+ Ke4 53. Qh7+ Qf5 54. Qxa7 $16) 49. Qh7+ Kf6 50. Qh6+ Kf7 51. Qh7+) 38... Qd5 {[%emt 0:00:01]} 39. Nb4 {[%emt 0:00:02]} Qd4 {[%emt 0:00:02]} (39... Rh8 $142 {[%cal Oh8h2] ( -> ...Rxh2+!)} 40. Qe7+ Kxe7 41. Nxd5+ cxd5) 40. Qf7 {[%emt 0:00:01]} Nf4 {[%emt 0:00:01]} (40... Qxb2 41. Rd1+ Nd4 42. g3 $19) 41. Nc2 {[%emt 0:00:02]} Qd3 {[%emt 0:00:03][%mdl 8192]} (41... Qxb2 $2 42. Qxf4+ Qe5 (42... Kc5 $2 43. Ne3 $18) 43. Qxc4 $18) (41... Qe4 $19 {[%csl Gf4][%cal Re4g2] avoids the disaster.} 42. Ne3 Rc7 43. Qxc4 Qxc4 44. Nxc4+ Kc5) 42. Qxf4+ $18 {[%emt 0:00:01]} Kd7 {[%emt 0:00:01][%cal Rd3f1]} 43. Ne3 {[%emt 0:00:00][%cal Oh2h3]} Re4 $2 {[%emt 0:00:03]} (43... Rb8 {was called for.} 44. Qg4+ (44. Qxc4 Qxc4 45. Nxc4 Re2 $16) (44. Rd1 $2 Qxd1+ 45. Nxd1 Re1#) 44... Kc7 45. Qg7+ (45. Qxc4 Qxc4 46. Nxc4 Re2 $16) (45. Rd1 Qe4 $18) 45... Qd7) 44. Qf5+ {[%emt 0:00:01]} Kc7 {[%emt 0:00:01]} 45. h3 {[%emt 0:00:04]} (45. Rd1 $2 Qxd1+ 46. Nxd1 Re1#) 45... Rd8 {[%emt 0:00:00]} 46. Rc1 {[%emt 0:00:05]} (46. Rd1 Rxe3 47. Rxd3 cxd3 48. fxe3 (48. Qf4+ Rd6 $11) 48... d2 49. Qa5+ Kc8 50. Qa8+ Kc7 51. Qa5+ Kc8 52. Qa8+ Kc7 53. Qa5+ $11) 46... Red4 {[%emt 0:00:04]} 47. Qe5+ {[%emt 0:00:02]} Kb7 {[%emt 0:00:01]} 48. a4 {[%emt 0:00:04]} (48. Rd1 $18 {and White stays clearly on top.} Qxe3 49. Qxe3 Rxd1+ 50. Kh2) 48... Qb3 $16 {[%emt 0:00:03]} 49. a5 $2 {[%emt 0:00:02]} (49. Kh2 $18 {[%cal Oe3c4] Nxc4! is the strong threat.} Qb4 50. Qe6) 49... Qb5 {[%emt 0:00:01]} (49... Qxb2 $11 50. Re1 (50. Nxc4 $2 Qxc1+ 51. Kh2 Rxc4 $19) (50. Rxc4 $2 Rd1+ 51. Nxd1 Rxd1+ 52. Kh2 Qxe5+ $19) 50... Qb5 (50... Qxf2 51. Rb1+ Ka8 52. Qc7) 51. a6+ Ka8 (51... Kxa6 $2 52. Qc7 $18) (51... Qxa6 52. Rb1+ Ka8 53. Qc5 $18)) 50. Qg7+ {[%emt 0:00:04]} (50. Qe7+ $18 R8d7 51. Qe8) 50... R8d7 {[%emt 0:00:00]} 51. Qf6 {[%emt 0:00:01]} (51. Qg6 $16) 51... Ka6 $2 {[%emt 0:00:03]} (51... Qxb2 $11 52. Rg1 (52. Rxc4 $2 Rd1+ 53. Nxd1 Rxd1+ 54. Kh2 Qxf6 $19) 52... Qb5) 52. h4 $2 {[%emt 0:00:03]} (52. g4 $18) 52... Qc5 $2 {[%emt 0:00:03]} (52... R7d6 $1 $11 {and Black stays safe.} 53. Qf8 Rd8 (53... Rxh4+ 54. Kg1 $16)) 53. g3 {[%emt 0:00:01]} Kb5 {[%emt 0:00:04][%cal Ba6b5,Bb5a5,Ba5b6,Bb6c7][%mdl 32]} 54. Kg2 {[%emt 0:00:01]} Rd2 $2 {[%emt 0:00:03]} (54... Qd6 55. Qxd6 R4xd6 56. Nxc4 (56. Rxc4 Rd2 $18) 56... Rf6) 55. Nxc4 $18 {[%emt 0:00:03] Intending Na3+ and mate.} Qd5+ {[%emt 0:00:01]} 56. Kh2 {[%emt 0:00:01]} Rd1 {[%emt 0:00:07]} 57. Na3+ {[%emt 0:00:01]} Kxa5 {[%emt 0:00:00][%csl Gd1][%cal Rd5h1]} 58. Qc3+ {[%emt 0:00:01]} (58. Qxc6 $2 {is the wrong capture.} Rh1+ 59. Rxh1 Qxc6 $19) 58... Kb6 {[%emt 0:00:00][%csl Gd1][%cal Rd5h1]} 59. Nc4+ {[%emt 0:00:03]} Kc7 {[%emt 0:00:00] Weighted Error Value: White=0.86/Black=0.55.  Loses game:     	White=3     	Black=3      Missed win:     	White=3     	Black=2      Mistake:       	White=7     	Black=6      Inaccurate:     	White=3     	Black=3      OK:         	White=14    	Black=9      Best:        	White=4     	Black=9} 1-0

[Event "Indian Blitz Championship 2023"]
[Site "Nashik"]
[Date "2024.03.07"]
[Round "4.3"]
[White "Karthik Venkataraman"]
[Black "Hari Madhavan N B"]
[Result "0-1"]
[ECO "A41"]
[WhiteElo "2609"]
[BlackElo "2395"]
[Annotator "TA"]
[PlyCount "90"]
[EventDate "2024.03.07"]
[EventType "blitz"]
[EventCountry "IND"]
[SourceTitle "playchess.com"]
[Source "ChessBase"]
[SourceQuality "1"]
[TimeControl "180+2"]

{[%evp 24,90,14,19,0,0,57,49,46,0,0,-14,0,-22,-14,-31,-18,-13,-15,-25,21,10,12,20,43,0,0,4,95,-12,-28,-75,-5,-87,0,0,0,-46,-7,-51,-61,-364,-379,-483,-391,-313,-343,-592,-353,-546,-531,-794,-770,-941,-843,-2051,-1953,-2556,-1992,-29986,-890,-29986,-29987,-29990,-29991,-29989,-29981,-29997,-29998]} 1. e3 {[%emt 0:00:01]} e5 {[%emt 0:00:02]} 2. c4 {[%emt 0:00:01]} g6 {[%emt 0:00:03]} 3. Nc3 {[%emt 0:00:02]} Bg7 {[%emt 0:00:01]} 4. d4 {[%emt 0:00:02]} d6 {[%emt 0:00:02]} 5. Nf3 {[%emt 0:00:05]} Nd7 {[%emt 0:00:01]} 6. h4 {[%emt 0:00:03] A41: 1 d4 d6: Tartakower System and Modern Defence.} Ngf6 {[%emt 0:00:06]} 7. Be2 {[%emt 0:00:04]} c6 $146 {[%emt 0:00:02]} ({Predecessor:} 7... O-O 8. b3 c6 9. Bb2 Re8 10. d5 cxd5 11. Nxd5 Nxd5 12. Qxd5 e4 13. Nd4 Re5 14. Qxd6 {0-1 King,R (1998)-De Winter,A (2360) Speed Chess Q2 Sw blitz 2023 (1)}) 8. b3 {[%emt 0:00:03]} Qa5 {[%emt 0:00:10]} 9. Bd2 {[%emt 0:00:02]} Qc7 {[%emt 0:00:03]} 10. Rc1 {[%emt 0:00:03]} O-O {[%emt 0:00:06]} 11. d5 {[%emt 0:00:11]} Re8 {[%emt 0:00:05]} 12. e4 {[%emt 0:00:19]} Nc5 {[%emt 0:00:01]} 13. Qc2 {[%emt 0:00:01]} Bg4 {[%emt 0:00:02]} 14. Ng1 {[%emt 0:00:18]} Qc8 {[%emt 0:00:11]} (14... Bxe2 $11 15. Ngxe2 Rec8) 15. f3 $14 {[%emt 0:00:04]} Bd7 {[%emt 0:00:01]} 16. Be3 {[%emt 0:00:10]} ({Better is} 16. g4 $14) 16... Nh5 $11 {[%emt 0:00:04]} 17. g4 {[%emt 0:00:08]} Nf4 {[%emt 0:00:07]} 18. Kd1 {[%emt 0:02:01]} f5 {[%emt 0:00:06]} 19. gxf5 {[%emt 0:00:00]} gxf5 {[%emt 0:00:01]} 20. b4 {[%emt 0:00:00]} Na6 {[%emt 0:00:04]} 21. a3 {[%emt 0:00:00]} Nxe2 {[%emt 0:00:11]} (21... cxd5 $142 22. exd5 Nxe2 23. Qxe2 Kh8) 22. Ngxe2 $11 {[%emt 0:00:00]} f4 {[%emt 0:00:02]} 23. Bf2 {[%emt 0:00:00]} Nc7 {[%emt 0:00:07]} 24. Kd2 {[%emt 0:00:00]} Kh8 {[%emt 0:00:02]} 25. Rhg1 {[%emt 0:00:00]} a5 {[%emt 0:00:06]} (25... Bf6 $11) 26. Qb2 {[%emt 0:00:00]} (26. Na4 $16) 26... axb4 $11 {[%emt 0:00:10]} 27. axb4 {[%emt 0:00:00]} (27. Qxb4 $11 {was preferrable.} c5 28. Qb2) 27... Rf8 {[%emt 0:00:21]} (27... cxd5 $17 {aiming for ...d4.} 28. Nxd5 Nxd5 29. cxd5 Qd8) 28. Ra1 {[%emt 0:00:00]} (28. c5 $1 $11) 28... b5 {[%emt 0:00:10]} (28... Rxa1 $17 29. Qxa1 cxd5 30. exd5 Bf5) 29. cxb5 {[%emt 0:00:00]} cxd5 {[%emt 0:00:19]} 30. Rxa8 {[%emt 0:00:00]} (30. b6 $11 {is more appropriate.} dxe4 31. Nxe4 Rxa1 (31... Nb5 32. N2c3 $11) 32. Qxa1) 30... Qxa8 $15 {[%emt 0:00:06]} 31. b6 {[%emt 0:00:00]} (31. Ra1 $5 Qe8 32. b6 (32. exd5 $2 Qh5 $19) 32... dxe4 33. fxe4 $11 (33. bxc7 $2 e3+ 34. Bxe3 fxe3+ 35. Kc1 e4 $19)) 31... dxe4 $1 {[%emt 0:00:02]} 32. bxc7 $4 {[%emt 0:00:00][%mdl 8192]} (32. fxe4 $15 Ne6 33. Nd5) 32... e3+ $19 {[%emt 0:00:01]} ({Stronger than} 32... exf3 33. b5 (33. Ra1 Qc8 $17) 33... fxe2 34. Kxe2 $11) 33. Ke1 {[%emt 0:00:00]} exf2+ {[%emt 0:00:03]} 34. Kxf2 {[%emt 0:00:00]} Qa7+ {[%emt 0:00:02]} 35. Kg2 $2 {[%emt 0:00:00]} (35. Ke1 Qxc7 36. Ne4) 35... Qxc7 {[%emt 0:00:01]} 36. Nd5 {[%emt 0:00:14]} (36. Qd2 $142 Bc6 37. Qd3) 36... Qd8 {[%emt 0:00:01]} 37. Rh1 {[%emt 0:00:04]} Rg8 {[%emt 0:00:03]} 38. Kf1 {[%emt 0:00:03]} e4 {[%emt 0:00:06]} 39. Qb3 {[%emt 0:00:00]} exf3 {[%emt 0:00:02]} 40. Qxf3 {[%emt 0:00:02]} Qa8 {[%emt 0:00:07]} 41. Nexf4 {[%emt 0:00:08]} Rf8 {[%emt 0:00:01]} (41... Bb5+ $142 42. Ke1 Re8+ 43. Kf2 Bd4+ 44. Ne3 Bxe3+ 45. Qxe3 Qa2+ (45... Qxh1 46. Qc3+ Kg8 47. Qb3+ Kg7 48. Qb2+ Kf7 49. Qb3+ Kf6 50. Nh5+ Ke7 51. Qe3+ Kd8 52. Qg5+ Kc7 53. Qxb5 $19) 46. Ne2 Rxe3 (46... Qxe2+ $2 47. Qxe2 Rxe2+ 48. Kf3 $19) 47. Kxe3 Qxe2+ (47... Bxe2 $2 48. Rh2 $19) 48. Kf4 Bc6 49. Rg1 Qf2+ 50. Kg4 Bd7+ (50... Qxg1+ {gets mated.} 51. Kf4 Qf2+ 52. Kg5 Bd7 53. Kh5 Qf5+ 54. Kh6 Qg6#) 51. Kg5 Kg7 (51... Qxg1+ 52. Kf4 Bc6 53. b5 Qf2+ 54. Kg5 h6+ 55. Kh5 Kh7 56. bxc6 Qf5#) 52. Rf1 Qg3+ 53. Kh5 Qg6#) 42. Rg1 {[%emt 0:00:03]} Bd4 {[%emt 0:00:04]} 43. Rg5 {[%emt 0:00:04]} Qa1+ {[%emt 0:00:03]} 44. Ke2 {[%emt 0:00:03]} Re8+ {[%emt 0:00:05]} 45. Kd2 {[%emt 0:00:04]} Qb2+ {[%emt 0:00:15]} 0-1

[Event "Indian Blitz Championship 2023"]
[Site "Nashik"]
[Date "2024.03.07"]
[Round "4.4"]
[White "Wagh Suyog"]
[Black "Ravi, Teja S."]
[Result "1-0"]
[ECO "A11"]
[WhiteElo "2250"]
[BlackElo "2437"]
[Annotator "TA"]
[PlyCount "107"]
[EventDate "2024.03.07"]
[EventType "blitz"]
[EventCountry "IND"]
[SourceTitle "playchess.com"]
[Source "ChessBase"]
[SourceQuality "1"]
[TimeControl "180+2"]

{[%evp 13,106,7,40,26,35,41,28,24,23,21,36,42,56,25,35,0,0,0,0,-12,3,0,18,0,0,0,30,20,38,44,33,31,33,27,29,27,60,0,0,-30,-32,-34,-20,-30,-30,-31,-20,-23,-9,-14,124,-76,-72,-63,-29,-36,0,-113,-125,-157,202,187,275,259,346,333,408,412,569,358,431,489,527,548,29993,510,499,0,29993,0,486,0,29993,29994,29994,29995,29995,29996,29996,29997,29997,29998,29998,29999,29999]} 1. Nf3 {[%emt 0:00:01]} d5 {[%emt 0:00:00]} 2. g3 {[%emt 0:00:02]} c6 {[%emt 0:00:01]} 3. c4 {[%emt 0:00:04]} Nf6 {[%emt 0:00:01]} 4. Bg2 {[%emt 0:00:01]} Bg4 {[%emt 0:00:01]} 5. Ne5 {[%emt 0:00:02]} Be6 {[%emt 0:00:05][%cal Bg4e6,Be6d5,Bd5c6][%mdl 32]} 6. cxd5 {[%emt 0:00:02]} Bxd5 {[%emt 0:00:05]} 7. Nf3 {[%emt 0:00:01]} c5 {[%emt 0:00:13]} 8. Nc3 {[%emt 0:00:02]} Bc6 {[%emt 0:00:01]} 9. O-O {[%emt 0:00:06]} e6 {[%emt 0:00:00]} 10. Re1 {[%emt 0:00:35] Weiß hat minimalen Vorteil.} Nbd7 {[%emt 0:00:06]} 11. e4 {[%emt 0:00:01]} e5 {[%emt 0:00:32]} 12. d3 {[%emt 0:00:05][%cal Oc3d5]} Be7 {[%emt 0:00:02]} 13. Qe2 {[%emt 0:00:07]} O-O {[%emt 0:00:03]} 14. Nh4 {[%emt 0:00:05]} Re8 {[%emt 0:00:18]} 15. Nf5 {[%emt 0:00:07]} Bf8 {[%emt 0:00:01]} 16. Bg5 {[%emt 0:00:26]} h6 {[%emt 0:00:47]} 17. Bc1 {[%emt 0:00:08]} Nb6 {[%emt 0:00:02]} 18. Rd1 {[%emt 0:00:10]} Nc8 {[%emt 0:00:02]} 19. Ne3 {[%emt 0:00:22]} Nd6 {[%emt 0:00:07]} 20. b3 {[%emt 0:00:07]} Nb5 {[%emt 0:00:01]} 21. Nxb5 {[%emt 0:00:03]} Bxb5 {[%emt 0:00:01]} 22. Bb2 {[%emt 0:00:02]} Qc7 {[%emt 0:00:03]} 23. Rac1 {[%emt 0:00:04]} Rad8 {[%emt 0:00:00]} 24. Qc2 {[%emt 0:00:07][%cal Od3d4]} b6 {[%emt 0:00:04]} 25. Nc4 {[%emt 0:00:05]} (25. d4 $14) 25... Nd7 $11 {[%emt 0:00:11][%cal Bf6d7,Bd7b8,Bb8c6][%mdl 32]} 26. Bc3 {[%emt 0:00:03]} Nb8 {[%emt 0:00:02]} 27. Ne3 {[%emt 0:00:05]} Nc6 {[%emt 0:00:08]} 28. Nd5 {[%emt 0:00:02]} Qb8 {[%emt 0:00:03]} 29. f4 {[%emt 0:00:17]} exf4 {[%emt 0:00:20]} 30. gxf4 {[%emt 0:00:01]} Ne7 {[%emt 0:00:05] ...Nxd5 wäre nun fies.} 31. Be5 {[%emt 0:00:19]} Qb7 {[%emt 0:00:00]} (31... Qc8 $11 32. Nc7 f6) 32. Nxe7+ $2 {[%emt 0:00:11]} (32. Nc7 $16 {ist erzwungen, um die Oberhand zu behalten.}) 32... Rxe7 {[%emt 0:00:01]} 33. Rd2 {[%emt 0:00:03]} Red7 {[%emt 0:00:00]} (33... Rxe5 $5 34. fxe5 Qe7 $17) 34. Rcd1 {[%emt 0:00:01]} Bd6 {[%emt 0:00:06]} 35. Bxd6 {[%emt 0:00:04]} (35. Bxg7 $1 $11 Kxg7 36. e5) 35... Rxd6 $17 {[%emt 0:00:00]} 36. e5 {[%emt 0:00:01][%csl LRb7,LRd6] [#]} Rd5 $1 {[%emt 0:00:02][%mdl 512]} 37. d4 $1 $18 {[%emt 0:00:03] Damit ist Schwarz auf der Verliererstraße.} (37. Bxd5 Qxd5 38. Rf2 Qe6 $11 (38... Bxd3 39. Qc3 $11)) 37... cxd4 {[%emt 0:00:18]} (37... Qc8 {war angesagt.}) 38. Bxd5 {[%emt 0:00:02]} Rxd5 {[%emt 0:00:10]} 39. Rxd4 {[%emt 0:00:01]} Rxd4 {[%emt 0:00:03]} 40. Rxd4 {[%emt 0:00:00][%mdl 4096] Endspiel. jetzt Rd8+ und aus. KQR-KQB} g6 {[%emt 0:00:02] [#]} 41. e6 $1 {[%emt 0:00:03] Zielt auf Rd8+ ab.} Qf3 {[%emt 0:00:04][%csl Gb5][%cal Rf3f1]} (41... Qe7 42. exf7+) 42. exf7+ {[%emt 0:00:03]} Kxf7 {[%emt 0:00:02][%csl Gb5][%cal Rf3f1]} 43. Qc7+ {[%emt 0:00:01]} Kf6 {[%emt 0:00:06][%csl Gb5][%cal Rf3f1]} 44. Qe5+ {[%emt 0:00:03]} (44. Qxa7 $2 Qf1#) (44. Rd6+ $142 Kf5 45. Qf7+ (45. Qxa7 $2 Qf1#) (45. Qc2+ Qe4 $18) 45... Ke4 46. Qe6+ (46. Qxg6+ Ke3 47. Qe6+ Qe4 48. Qh3+ Kxf4 49. Qxh6+ Kg4 50. h3+ Kg3 51. Qg5+ Kf3) 46... Kxf4 47. Qf6+ (47. Qxg6 $2 Qf1#) 47... Ke4 48. Rd4+ (48. Qxg6+ Ke3 49. Qxh6+ Qf4 50. Re6+ Kd3 51. Qxf4 Kc2 52. Qd4 Bd3) 48... Ke3 49. Qe5+ Qe4 50. Qxe4#) 44... Kf7 {[%emt 0:00:01][%csl Gb5][%cal Rf3f1]} 45. Qc7+ {[%emt 0:00:07]} ({Lieber nicht} 45. Qxb5 Qe3+ 46. Kg2 Qxd4 $11) (45. Qd5+ $18 Qxd5 46. Rxd5) 45... Kf6 $1 {[%emt 0:00:00][%csl Gb5][%cal Rf3f1]} 46. Qe5+ {[%emt 0:00:01]} (46. Qxa7 $2 Qf1#) (46. Rd6+ $142 Kf5 47. Qf7+ (47. Qxa7 $2 Qf1#) (47. Qc2+ Qe4 $18) 47... Kg4 48. Rxg6+ Kh4 49. Qf6+ (49. Qxa7 $2 Qf1#) 49... Kh3 50. Rxh6+ Qh5 51. Qf5+ Kh4 52. Rxh5#) 46... Kf7 {[%emt 0:00:01][%csl Gb5][%cal Rf3f1]} 47. Qc7+ {[%emt 0:00:01]} ({Und nicht} 47. Qxb5 Qe3+ 48. Kg2 Qxd4 $11) (47. Qd5+ $18 Qxd5 48. Rxd5) 47... Kf6 $1 {[%emt 0:00:00][%csl Gb5][%cal Rf3f1]} 48. Rd6+ {[%emt 0:00:01] Weiß setzt Matt.} (48. Qxa7 $2 Qf1#) 48... Kf5 {[%emt 0:00:03]} 49. Qf7+ {[%emt 0:00:01]} (49. Qxa7 $2 Qf1#) 49... Ke4 {[%emt 0:00:04]} 50. Qe7+ {[%emt 0:00:03]} Kf5 {[%emt 0:00:02]} 51. Qe5+ {[%emt 0:00:02]} (51. Qxa7 $2 Qf1#) 51... Kg4 {[%emt 0:00:01]} 52. Rxg6+ {[%emt 0:00:01]} Kh4 {[%emt 0:00:01]} 53. Rxh6+ {[%emt 0:00:03]} Kg4 {[%emt 0:00:01]} 54. Qg5# {[%emt 0:00:01] Gewichteter Fehlerwert: Weiß=0.75/Schwarz=0.48.  Verlustzug:     	---       	Schwarz=2     Fehler:       	Weiß=5     	Schwarz=2     Ungenau:       	Weiß=4     	Schwarz=7     OK:         	Weiß=12    	Schwarz=11    Bester:       	Weiß=5     	---        Stark:        	Weiß=1     	Schwarz=2} 1-0